Cogmind - Beta 17.1 @@@ ROGUE MODE // 2026.09.24 @ 01:25:56 Player: Caluan Result: Destroyed by P-80 Master with Gamma Rifle Performance ------------- Evolutions (9) 4500 Regions Visited (20) 4000 Robots Destroyed (242) 1210 Value Destroyed (9059) 9059 Prototype IDs (14) 280 Alien Tech Used (0) 0 Bonus (8125) 8125 TOTAL SCORE: 27174 Bonus ------- High Alert Combat Kills 508 Follower Combat Kills 3137 Entered DSFs 500 Network Hubs Disabled 200 Registered with UFD 300 Met Optimus in HQ 500 Built Enhanced Grunts 300 A7 Reached Mainframe 300 Met R17 at Cetus 500 Met R17 at Research 2000 Friendly Fire -120 Cogmind --------- Core Integrity 0/1600 Matter 130/300 Energy 99/100 System Corruption 22% Temperature Cool (0) Movement Core (50) Location -1/Access Parts ------- > --- POWER (2) -------- (None) > --- PROPULSION (4) --- (None) > --- UTILITY (15) ----- Experimental Optical Array Improved Signal Interpreter Advanced Salvage Targeting Computer > --- WEAPON (4) ------- (None) > --- INVENTORY (5) ---- Micro Antimatter Reactor Biometal Medium Treads Peak State ------------ > --- POWER ------------ Cooled Deuterium Engine Particle Reactor > --- PROPULSION ------- Centrium Heavy Treads Centrium Heavy Treads > --- UTILITY ---------- Huge Storage Unit Improved Signal Interpreter Advanced Salvage Targeting Computer Advanced Targeting Computer Core Analyzer Improved Transmission Jammer Centrium Medium Armor Plating Centrium Medium Armor Plating > --- WEAPON ----------- KE Penetrator Hypervelocity Coil Gun Railgun > --- INVENTORY -------- Medium Treads Medium Treads Improved Medium Treads Improved Medium Treads Improved Medium Treads Centrium Heavy Treads Wheel Improved Cooling System Improved Cooling System Huge Storage Unit Large Matter Pod Improved Terrain Scanner Seismic Detector A0-MCA's Component Scanner Long-range Tractor Beam KE Penetrator KE Penetrator KE Penetrator Railgun Heavy Missile Launcher Heavy Missile Launcher Improved Plasma Cutter Phasing Sabre DRS Beacon [Rating: 121] Favorites ----------- Power Cooled Deuterium Engine Engine Cooled Deuterium Engine Power Core Micro Fission Core Reactor Micro Antimatter Reactor Propulsion Light Treads Treads Light Treads Leg Thunder Leg Wheel Wheel Flight Unit Impulse Thruster Array Utility Huge Storage Unit Device Improved Transmission Jammer Storage Huge Storage Unit Processor Improved Signal Interpreter Hackware Authchip [Weapon] Protection Improved Medium Armor Plating Weapon Heavy Assault Rifle Energy Gun Gatling Laser Ballistic Gun Heavy Assault Rifle Ballistic Cannon Enhanced Hardcell Cannon Launcher Heavy Missile Launcher Special Weapon Plasma Cutter Impact Weapon Power Maul Slashing Weapon Phasing Sabre Build | -11 -10 -10 -9 -9 -8 -7 -7 -7 -7 -5 -5 -5 -5 -5 -4 -4 -3 -3 -2 -1 ------- Run | Yrd Mat Min Mat Min Mat Fac Sto Rec Scr Fac Ext Cet Arc Hub Fac DSF Res Tes Res Acc Slots Evolved 18 | . . . 2 . 2 2 . . . 4 . . . . 2 . 2 . 2 2 Power 1 | . . . . . . . . . . 1 . . . . . . . . . . Propulsion 2 | . . . . . 1 1 . . . . . . . . . . . . . . Utility 13 | . . . 1 . 1 1 . . . 3 . . . . 1 . 2 . 2 2 Weapon 2 | . . . 1 . . . . . . . . . . . 1 . . . . . Parts Attached 196 | 6 8 2 15 1 12 33 19 2 4 3 26 5 2 10 7 4 14 4 1 18 Power 21 | 1 . 1 3 . 1 2 3 . . 1 4 . 1 . . . 2 . . 2 Engine 14 | 1 . 1 3 . 1 2 3 . . . 3 . . . . . . . . . Core 2 | . . . . . . . . . . 1 1 . . . . . . . . . Reactor 5 | . . . . . . . . . . . . . 1 . . . 2 . . 2 Propulsion 55 | 2 2 . 3 . 4 7 8 1 . 1 6 2 . 1 3 . 6 1 . 8 Treads 43 | 2 1 . 2 . 3 6 8 1 . 1 6 2 . 1 2 . . . . 8 Leg 3 | . . . . . . . . . . . . . . . . . 3 . . . Wheel 6 | . 1 . 1 . 1 1 . . . . . . . . 1 . 1 . . . Hover . | . . . . . . . . . . . . . . . . . . . . . Flight 3 | . . . . . . . . . . . . . . . . . 2 1 . . Utility 49 | 1 1 1 4 . 4 11 3 . 1 1 7 3 . 1 4 . 2 2 . 3 Device 14 | . . . . . . 5 . . . 1 1 . . 1 . . 1 2 . 3 Storage 3 | 1 1 . 1 . . . . . . . . . . . . . . . . . Processor 12 | . . 1 1 . 1 4 2 . 1 . 1 . . . . . 1 . . . Hackware 2 | . . . . . . 2 . . . . . . . . . . . . . . Protection 18 | . . . 2 . 3 . 1 . . . 5 3 . . 4 . . . . . Artifact . | . . . . . . . . . . . . . . . . . . . . . Weapon 71 | 2 5 . 5 1 3 13 5 1 3 . 9 . 1 8 . 4 4 1 1 5 Energy Gun 5 | 1 . . . . . 2 . . . . . . . . . . . . . 2 Energy Cannon . | . . . . . . . . . . . . . . . . . . . . . Ballistic Gun 44 | 1 4 . 3 . 3 9 4 1 2 . 7 . 1 5 . . 2 1 1 . Ballistic Cannon 9 | . . . . . . . . . . . 1 . . . . 4 1 . . 3 Launcher 7 | . 1 . 1 1 . . 1 . 1 . . . . 1 . . 1 . . . Special Weapon 3 | . . . . . . 1 . . . . 1 . . 1 . . . . . . Impact Weapon 2 | . . . 1 . . 1 . . . . . . . . . . . . . . Slashing Weapon 1 | . . . . . . . . . . . . . . 1 . . . . . . Piercing Weapon . | . . . . . . . . . . . . . . . . . . . . . Special Melee Weapon . | . . . . . . . . . . . . . . . . . . . . . Unidentified Prototypes 12 | . . . 1 . . 1 2 . . . . 2 . . . . 4 2 . . Corrupted Parts 1 | . . . . . . . . . . . . . . 1 . . . . . . System Corruption 6 | . . . . . . . . . . . . . . 6 . . . . . . Parts Lost 75 | . 2 . 5 . 7 3 4 . . . 12 . 1 10 . 8 . 3 1 19 Power 8 | . . . 1 . . . . . . . 2 . . 2 . . . 1 . 2 Propulsion 25 | . 1 . 1 . 2 1 3 . . . 3 . . 3 . 3 . 1 . 7 Utility 20 | . . . 1 . 2 1 1 . . . 3 . . 2 . 4 . 1 . 5 Weapon 22 | . 1 . 2 . 3 1 . . . . 4 . 1 3 . 1 . . 1 5 Highest Loss Streak 10 | . 1 . 3 . 2 2 2 . . . 6 . 1 10 . 4 . 2 1 6 To Critical Strikes 1 | . . . . . . . . . . . 1 . . . . . . . . . Average Backups 19 | 2 12 16 20 22 18 24 24 24 23 24 23 23 22 22 2 1 4 3 2 3 Power . | . 1 2 1 . . . 1 2 2 2 1 . . . . . . . . . Propulsion 5 | . . 2 5 9 8 8 6 6 6 6 6 7 7 6 1 . . 2 1 2 Utility 5 | 1 3 4 5 6 4 7 7 7 7 8 7 8 8 7 . . . . . . Weapon 6 | 1 5 7 7 6 5 6 8 7 6 7 6 7 6 6 1 1 4 1 1 . Tool/Special . | . . . . . . . . . . . . . . . . . . . . . Unused Backups 36 | . 1 . 6 . . 9 . 1 . . 4 1 . 10 . . 1 . . 3 Power 2 | . . . 2 . . . . . . . . . . . . . . . . . Propulsion 17 | . . . . . . 5 . 1 . . 1 1 . 6 . . . . . 3 Utility 5 | . . . . . . 1 . . . . 1 . . 3 . . . . . . Weapon 12 | . 1 . 4 . . 3 . . . . 2 . . 1 . . 1 . . . Tool/Special . | . . . . . . . . . . . . . . . . . . . . . Average Slot Usage (%) 86 | . 77 97 99 88 93 91 98 97 93 85 93 92 88 85 41 49 32 48 39 41 Engine 7 | . 14 14 11 11 9 7 6 7 7 5 6 11 6 4 . . . . . . Treads 18 | . 18 14 11 11 17 16 29 30 30 23 22 15 11 10 6 6 . . . 8 Wheel 3 | . 2 14 10 11 9 7 . . . . . . . . 3 2 . . . . Device 3 | . . . . . . 7 6 . . 4 5 5 5 4 . . . 2 4 4 Storage 7 | . 14 14 11 11 9 7 7 7 7 5 5 5 5 4 . . . . . . Processor 15 | . . 11 10 . . 13 23 23 23 17 18 23 23 23 21 21 19 22 17 15 Protection 6 | . . . 10 11 20 6 . 7 7 4 9 10 11 10 11 11 . . . . Ballistic Gun 19 | . 27 28 32 32 26 17 20 19 16 17 16 16 17 15 . . 3 5 4 . Peak Build Rating 121 | 6 10 15 23 16 25 50 45 45 48 61 79 114 119 121 53 63 91 100 83 93 Average Rating 45 | 4 8 11 20 15 20 43 42 43 42 58 69 102 115 116 40 49 43 85 77 72 On Entrance 45 | . 6 10 15 15 15 25 37 44 34 48 61 79 114 116 18 53 19 91 76 74 Avg Prop Armor Cover (%) 13 | . 11 11 7 7 10 14 . . . . . . . 39 13 17 18 . . 37 Naked Turns . | . . . . . . . . . . . . . . . . . . . . . Heaviest Build 141 | 13 91 95 104 99 109 114 110 109 110 116 132 131 140 141 31 52 36 32 22 64 Greatest Support 160 | 40 40 10 10 10 10 42 86 83 80 83 95 160 160 160 28 30 63 32 36 140 Greatest Overweight (x) 11 | . 9 9 10 9 10 11 1 1 1 1 1 1 . 1 1 1 2 . . 1 Average Overweight (x) 2 | . 4 9 9 9 9 3 1 1 1 1 1 . . . . . . . . . Largest Inventory Capacity 25 | 8 25 25 25 25 25 25 25 25 25 25 25 25 25 25 5 5 5 5 5 5 Average Capacity 22 | 7 24 25 25 25 25 25 25 25 25 25 25 25 25 24 5 5 5 5 5 5 Most Carried 25 | 5 16 18 25 22 24 25 25 25 25 25 25 25 25 25 5 4 5 5 3 5 Average Carried 20 | 2 12 16 20 22 18 24 24 24 23 25 24 24 24 24 2 1 4 4 3 3 Final Capacity 25 | 8 25 25 25 25 25 25 25 25 25 25 25 25 25 5 5 5 5 5 5 5 Final Carried 25 | 5 15 18 22 22 24 25 24 25 25 25 25 25 25 5 1 4 5 3 3 2 Class Distribution -------------------- 25% | Mutant 23% | Gunner 16% | Commander-Gunner 13% | Scavenger-Tank 10% | Tank 4% | Commander-Mutant 3% | Scavenger-Gunner Dominant Class ---------------- Mutant | -10/Materials Mutant | -10/Mines Gunner | -9/Materials Tank | -9/Mines Tank | -8/Materials Gunner | -7/Factory Gunner | -7/Storage Commander-Gunner | -7/Recycling Commander-Gunner | -7/Scraptown Commander-Gunner | -5/Factory Commander-Gunner | -5/Extension Scavenger-Tank | -5/Cetus Scavenger-Tank | -5/Archives Scavenger-Tank | -5/Hub_04(d) Mutant | -4/Factory Mutant | -4/DSF Mutant | -3/Research Mutant | -3/Testing Mutant | -2/Research Mutant | -1/Access Resources | -11 -10 -10 -9 -9 -8 -7 -7 -7 -7 -5 -5 -5 -5 -5 -4 -4 -3 -3 -2 -1 ----------- Run | Yrd Mat Min Mat Min Mat Fac Sto Rec Scr Fac Ext Cet Arc Hub Fac DSF Res Tes Res Acc Matter Collected 8837 | 265 429 46 669 291 470 1382 959 287 7 252 1053 250 107 758 . 325 378 30 . 879 Remotely 267 | . . . . . . . . . . . . . . 267 . . . . . . Salvage Created 9651 | 153 750 . 1038 161 619 1488 1376 94 . 78 1204 143 105 1110 . 300 273 . . 759 Parts 545 | 12 57 . 85 9 40 82 63 3 . 6 48 6 3 78 . 9 8 . . 36 Haulers Intercepted 13 | . 2 . 5 . 2 1 2 . . . . . . . . . 1 . . . Recyclers Shooed 8 | . 2 . . 1 1 . 1 2 . 1 . . . . . . . . . . Parts Field Recycled . | . . . . . . . . . . . . . . . . . . . . . Retrieved Matter . | . . . . . . . . . . . . . . . . . . . . . Parts Self-Destructed . | . . . . . . . . . . . . . . . . . . . . . Prevented . | . . . . . . . . . . . . . . . . . . . . . Parts Restored . | . . . . . . . . . . . . . . . . . . . . . Kills | -11 -10 -10 -9 -9 -8 -7 -7 -7 -7 -5 -5 -5 -5 -5 -4 -4 -3 -3 -2 -1 ------- Run | Yrd Mat Min Mat Min Mat Fac Sto Rec Scr Fac Ext Cet Arc Hub Fac DSF Res Tes Res Acc Combat Hostiles Destroyed 184 | . 14 . 25 8 14 30 28 3 . 1 22 2 1 13 . 5 2 . . 16 Melee 3 | . . . . . . . . . . . . . . . . 3 . . . . Guns 133 | . 10 . 19 5 10 30 20 3 . 1 18 2 1 11 . . 2 . . 1 Cannons 14 | . . . . . . . . . . . . . . . . 2 . . . 12 AOE 34 | . 4 . 6 3 4 . 8 . . . 4 . . 2 . . . . . 3 Classes Destroyed 19 | 2 6 . 1 1 1 4 1 . . . 1 . . 2 . . . . . . Worker 13 | . 2 . 4 . 1 . 3 . . . . . . 3 . . . . . . Builder 10 | . 2 . 3 . . . . . . 1 . . . 2 . . . . . 2 Tunneler 4 | 3 1 . . . . . . . . . . . . . . . . . . . Hauler 13 | . 2 . 5 . 2 1 2 . . . . . . . . . 1 . . . Recycler 11 | 1 1 . . . 1 3 4 . . . . . . 1 . . . . . . Operator 2 | . . . . . . . . . . . . . . 1 . . . . . 1 Watcher 7 | . 2 . 1 . . 1 1 . . . . . . 1 . . 1 . . . Swarmer 42 | . 6 . 12 3 6 5 3 1 . . . . . 2 . . 1 . . 3 Grunt 65 | . 8 . 9 3 5 10 6 1 . . 13 2 . 5 . 2 1 . . . Brawler 5 | . . . . . . 2 2 . . . 1 . . . . . . . . . Duelist 3 | . . . . . . 1 1 . . . 1 . . . . . . . . . Protector 2 | . . . . . . . 2 . . . . . . . . . . . . . Sentry 34 | . . . 4 . 2 4 10 1 . 1 5 . 1 4 . . . . . 2 Demolisher 1 | . . . . . . . . . . . 1 . . . . . . . . . Specialist 8 | . . . . . . 2 . . . . 1 . . . . 3 . . . 2 Hunter 4 | . . . . . 1 . 1 . . . . . . . . . . . . 2 Programmer 17 | . . . . . . 6 3 . . . . . . 1 . . . . . 7 Heavy 1 | . . . . . . . . . . . . . . 1 . . . . . . Assembled 2 | . . . . 2 . . . . . . . . . . . . . . . . Best Kill Streak 13 | 2 9 . 5 3 5 4 13 3 . 2 6 1 1 7 . 2 2 . . 4 Combat Bots Only 9 | . 5 . 3 3 5 4 9 3 . 1 6 1 1 2 . 2 1 . . 4 Max Kills in Single Turn 7 | 1 3 . 5 3 3 2 7 1 . 2 2 1 1 1 . 1 1 . . 3 Gunslinging 1 | . 1 . 1 1 . 1 . . . . 1 . . . . . . . . . Exploded 4 | . 2 . 3 3 3 . 4 . . . 2 . . 1 . . . . . 3 Melee 1 | . . . . . . . . . . . . . . . . 1 . . . . Uniques/NPCs Destroyed . | . . . . . . . . . . . . . . . . . . . . . Combat | -11 -10 -10 -9 -9 -8 -7 -7 -7 -7 -5 -5 -5 -5 -5 -4 -4 -3 -3 -2 -1 -------- Run | Yrd Mat Min Mat Min Mat Fac Sto Rec Scr Fac Ext Cet Arc Hub Fac DSF Res Tes Res Acc Hostile Shots Fired 1758 | . 100 . 85 16 97 184 251 34 . 29 175 42 9 140 . 194 32 60 6 304 Missed 549 | . 31 . 25 6 31 48 90 3 . 8 46 17 2 21 . 66 13 39 2 101 Hits 1209 | . 69 . 60 10 66 136 161 31 . 21 129 25 7 119 . 128 19 21 4 203 Melee 5 | . . . . . . 3 2 . . . . . . . . . . . . . Projectile 1204 | . 69 . 60 10 66 133 159 31 . 21 129 25 7 119 . 128 19 21 4 203 AOE 1 | . . . . . . . . . . . 1 . . . . . . . . . Critical Strikes 47 | . 1 . . . 1 3 3 . . . 3 2 . 19 . 3 . 1 . 11 Part Disruptions 8 | . . . . . . . . . . . . . . 2 . 3 . . . 3 Damage Taken 22884 | . 730 7 1020 149 893 2020 1241 280 . 270 2459 434 188 4415 49 2806 434 408 186 4895 Core 3830 | . 121 2 50 . 88 294 137 23 . 11 208 35 . 365 . 648 94 68 78 1608 Absorbed by Shields 1197 | . . . . . . 17 457 . . 110 348 202 . . . . . . . 63 Reduced by Siege Mode 210 | . . . . . . . . . . . . . . 210 . . . . . . Ignored by Resistances 139 | . . . . . 28 16 . . . . 95 . . . . . . . . . Regen/Repaired (Parts) 89 | . . . 89 . . . . . . . . . . . . . . . . . Core Remaining (%) 68 | 100 . 50 . 87 84 . . . 35 . . . . 38 . 43 . 87 94 . Volleys Fired 516 | 5 68 . 61 9 48 65 53 7 . 8 57 15 6 44 . 12 14 . . 44 Largest 4 | 2 2 . 3 3 3 3 3 3 . 3 3 3 3 3 . 4 3 . . 4 Hottest 242 | 60 46 . 69 66 65 133 95 81 . 84 96 96 96 107 . 216 129 . . 242 Shots Fired 1376 | 10 129 . 176 25 139 195 146 20 . 24 162 45 18 115 . 32 31 . . 109 Gun 1201 | 10 122 . 173 22 136 195 142 20 . 24 158 45 18 105 . . 28 . . 3 Cannon 139 | . . . . . . . . . . . . . . . . 32 3 . . 104 Launcher 36 | . 7 . 3 3 3 . 4 . . . 4 . . 10 . . . . . 2 Special . | . . . . . . . . . . . . . . . . . . . . . Kinetic 1293 | 5 122 . 173 22 136 156 142 20 . 24 158 45 18 105 . 32 31 . . 104 Thermal 39 | . . . . . . 39 . . . . . . . . . . . . . . Explosive 27 | . . . 1 3 3 . 4 . . . 4 . . 10 . . . . . 2 Electromagnetic 17 | 5 7 . 2 . . . . . . . . . . . . . . . . 3 Robot Hit Streak 32 | 5 9 . 10 6 6 32 18 10 . 6 32 8 10 13 . 7 5 . . 14 Robot Miss Streak 8 | 1 7 . 3 3 5 8 6 3 . 3 3 1 1 3 . 2 5 . . 5 Penetration Max 2 | . . . . . . . . . . 1 1 1 . 2 . . 1 . . . Secondary Targets 21 | . 3 . 3 2 3 5 2 . . . 2 . 1 . . . . . . . Max Gunslinging Chain 1 | . 1 . 1 1 1 1 1 . . . 1 . 1 . . . . . . . Shots Hit Robots 985 | 6 82 . 119 13 86 146 115 16 . 20 135 35 16 84 . 36 16 . . 60 Core Hits 709 | 4 34 . 46 10 38 104 173 21 . 23 103 19 9 70 . 13 12 . . 30 Critical Kills 9 | . . . . . . 2 . . . . . . . 5 . . 2 . . . Critical Parts Destroyed 7 | . . . 1 . . . 1 1 . . 1 1 . 2 . . . . . . Critical Strikes 30 | . . . 1 . . 2 1 1 . . 2 2 . 9 . 6 2 . . 4 Destroy 20 | . . . 1 . . 2 1 1 . . 2 2 . 9 . . 2 . . . Blast 6 | . . . . . . . . . . . . . . . . 2 . . . 4 Sever 4 | . . . . . . . . . . . . . . . . 4 . . . . Melee Attacks 50 | . . . 2 . 19 7 5 . . . . . . . . 17 . . . . Impact 33 | . . . 2 . 19 7 5 . . . . . . . . . . . . . Slashing 17 | . . . . . . . . . . . . . . . . 17 . . . . Piercing . | . . . . . . . . . . . . . . . . . . . . . Sneak Attacks . | . . . . . . . . . . . . . . . . . . . . . Combat Hostiles . | . . . . . . . . . . . . . . . . . . . . . Follow-up Attacks . | . . . . . . . . . . . . . . . . . . . . . Damage Inflicted 26913 | 77 1570 11 2423 330 1438 3049 3786 339 . 336 3609 911 393 3378 . 1620 514 . 2 3127 Guns 17070 | 77 1263 . 1808 151 1143 3044 2202 336 . 336 2954 911 375 1909 . . 479 . . 82 Cannons 3409 | . . . . . . . . . . . . . . . . 1004 35 . . 2370 Explosions 5680 | . 298 . 615 157 291 . 1579 . . . 655 . . 1464 . . . . . 621 Melee 616 | . . . . . . . . . . . . . . . . 616 . . . . Ramming 138 | . 9 11 . 22 4 5 5 3 . . . . 18 5 . . . . 2 54 Kinetic 19518 | 10 1263 . 1808 151 1143 2232 2202 336 . 336 2954 911 375 1909 . 1004 514 . . 2370 Thermal 964 | . . . 152 . . 812 . . . . . . . . . . . . . . Explosive 5175 | . . . 408 157 291 . 1579 . . . 655 . . 1464 . . . . . 621 Electromagnetic 502 | 67 298 . 55 . . . . . . . . . . . . . . . . 82 Impact . | . . . . . . . . . . . . . . . . . . . . . Slashing 616 | . . . . . . . . . . . . . . . . 616 . . . . Piercing . | . . . . . . . . . . . . . . . . . . . . . Highest Corruption 47 | . . . 13 13 1 9 11 11 11 . . . . 47 1 7 5 5 . 22 Average Corruption 8 | . . . 4 13 1 7 9 11 11 . . . . 8 1 4 5 5 . 9 Corruption Purged . | . . . . . . . . . . . . . . . . . . . . . Corruption Blocked . | . . . . . . . . . . . . . . . . . . . . . Effects 269 | . . . 12 27 5 93 51 16 . . . . . 13 . 9 3 5 . 35 Message Errors 64 | . . . 1 6 2 26 14 5 . . . . . 2 . 2 . 3 . 3 Matter Fused 58 | . . . 4 7 2 17 14 2 . . . . . 2 . 1 1 . . 8 Heat Flow Errors 34 | . . . 1 1 . 17 7 2 . . . . . . . . 1 1 . 4 Energy Discharges 28 | . . . 3 3 . 5 4 1 . . . . . 3 . . 1 . . 8 Parts Rejected 5 | . . . . . . . 1 . . . . . . 1 . . . 1 . 2 Parts Fused 4 | . . . . 1 . 1 . 1 . . . . . . . 1 . . . . Data Loss (minor) 30 | . . . . 3 . 14 4 4 . . . . . 1 . 2 . . . 2 Data Loss (major) 10 | . . . 1 2 . 2 2 1 . . . . . 1 . . . . . 1 Misfires 12 | . . . . 2 1 5 3 . . . . . . . . . . . . 1 Alerts 3 | . . . 1 . . 1 . . . . . . . . . 1 . . . . Misdirections 9 | . . . . 1 . . . . . . . . . 2 . . . . . 6 Weapon Failures 12 | . . . 1 1 . 5 2 . . . . . . 1 . 2 . . . . Overload Shots . | . . . . . . . . . . . . . . . . . . . . . Overflow Damage 276 | . . . 58 . 4 . . . . . 28 . . . . 36 . . . 150 Projectiles 103 | . . . . . . . . . . . . . . . . 36 . . . 67 Explosions 173 | . . . 58 . 4 . . . . . 28 . . . . . . . . 83 Melee . | . . . . . . . . . . . . . . . . . . . . . Knockbacks 11 | . . . . . . . . . . . . . . . . 6 . . . 5 Impact . | . . . . . . . . . . . . . . . . . . . . . Kinetic 11 | . . . . . . . . . . . . . . . . 6 . . . 5 Secondary . | . . . . . . . . . . . . . . . . . . . . . Self-Inflicted Damage 119 | . . 5 . 37 12 . 58 . . . . . . 2 . . . . . 5 Shots 4 | . . . . 1 1 . 2 . . . . . . . . . . . . . Rammed 22 | . 2 3 . 2 1 1 1 2 . . . . 1 2 . . . . 2 5 Targets Rammed 22 | . 2 3 . 2 1 1 1 2 . . . . 1 2 . . . . 2 5 Kicked . | . . . . . . . . . . . . . . . . . . . . . Crushed . | . . . . . . . . . . . . . . . . . . . . . Highest Temperature 351 | 20 22 . 206 168 141 351 218 251 . 27 272 126 56 225 . 68 205 190 . 254 Average Temperature 56 | 13 3 . 47 33 34 99 66 66 . 8 60 45 24 53 . 23 42 95 . 95 Received Heat Transfer 3257 | . 321 . 228 24 333 408 318 60 . 18 491 111 9 360 . 363 81 69 18 45 Effects 4 | . . . . . . . 1 . . . . . . . . . . . . 3 Energy Bleed 1 | . . . . . . . 1 . . . . . . . . . . . . . Interference 3 | . . . . . . . . . . . . . . . . . . . . 3 Siege Activations 5 | . . . . . . . . . . . . 1 1 3 . . . . . . Total Turns 46 | . . . . . . . . . . . . 3 4 39 . . . . . . Longest Duration 28 | . . . . . . . . . . . . 3 4 28 . . . . . . Martial Activations . | . . . . . . . . . . . . . . . . . . . . . Shielding Activations . | . . . . . . . . . . . . . . . . . . . . . Robots Disrupted . | . . . . . . . . . . . . . . . . . . . . . Combat Hostiles . | . . . . . . . . . . . . . . . . . . . . . Robots Corrupted . | . . . . . . . . . . . . . . . . . . . . . Combat Hostiles . | . . . . . . . . . . . . . . . . . . . . . Parts Fried 1 | . . . . . . . . . . . . . . . . . . . . 1 Impact Corruptions . | . . . . . . . . . . . . . . . . . . . . . Robots Melted . | . . . . . . . . . . . . . . . . . . . . . Combat Hostiles . | . . . . . . . . . . . . . . . . . . . . . Parts Melted 3 | . . . . . . 2 . . . . . . . . . . 1 . . . Heat Transferred 1875 | . . . 100 . . 1775 . . . . . . . . . . . . . . Parts Sabotaged . | . . . . . . . . . . . . . . . . . . . . . Parts Stolen . | . . . . . . . . . . . . . . . . . . . . . Parts Stripped . | . . . . . . . . . . . . . . . . . . . . . Power Chain Reactions . | . . . . . . . . . . . . . . . . . . . . . Alert | -11 -10 -10 -9 -9 -8 -7 -7 -7 -7 -5 -5 -5 -5 -5 -4 -4 -3 -3 -2 -1 ------- Run | Yrd Mat Min Mat Min Mat Fac Sto Rec Scr Fac Ext Cet Arc Hub Fac DSF Res Tes Res Acc Maximum Alert Level 3 | . . . 2 1 . 2 2 1 . . 3 3 2 3 2 2 1 . . 1 Low Security (%) 56 | 100 100 100 36 94 100 59 25 62 . 100 19 . . 9 . . 87 100 100 81 Level 1 26 | . . . 58 5 . 40 30 37 . . 39 10 75 20 . 76 12 . . 18 Level 2 14 | . . . 5 . . . 44 . . . 35 79 24 32 100 23 . . . . Level 3 2 | . . . . . . . . . . . 4 9 . 38 . . . . . . Level 4 . | . . . . . . . . . . . . . . . . . . . . . Level 5 . | . . . . . . . . . . . . . . . . . . . . . High Security . | . . . . . . . . . . . . . . . . . . . . . Max Security . | . . . . . . . . . . . . . . . . . . . . . Peak Influence 1088 | 10 167 2 417 218 186 400 642 252 . 180 719 743 436 1088 507 432 225 112 63 245 Initial 492 | . . 2 . 148 . 32 172 242 . . 60 393 287 103 492 333 225 38 51 19 Average 209 | 1 47 . 209 112 103 142 371 154 . 52 343 490 364 598 493 375 120 54 50 122 Influence Increases 9517 | 20 432 . 945 165 475 844 1068 60 . 230 1726 760 179 1438 15 149 73 154 12 772 Destroy 0b10 Robot/C 4980 | . 280 . 500 120 280 600 600 60 . 140 1000 400 80 460 . 100 40 . . 320 Destroy 0b10 Robot/NC 365 | 20 50 . 65 . 20 25 60 . . 10 15 10 . 65 . . 10 . . 15 Destroy Leader 1004 | . 68 . 122 20 74 134 196 . . 30 96 30 . 130 . 20 4 . . 80 Allied During Kill 1313 | . . . . . . . 39 . . 36 397 250 80 511 . . . . . . Successful Hack 164 | . 17 . 10 . 12 47 . . . 14 14 14 . 5 . . . 19 12 . Select Force Hacks 60 | . . . 60 . . . . . . . . . . . . . . . . . Disable Machine 495 | . 15 . 90 . 30 15 60 . . . 75 15 15 120 . . 15 . . 45 Destroy Structure 596 | . 2 . 53 25 29 8 38 . . . 84 26 4 132 . 14 4 . . 177 Partial Spotted 45 | . . . . . 15 . . . . . . . . . 15 . . . . 15 Lose Combat Pursuer 495 | . . . 45 . 15 15 75 . . . 45 15 . 15 . 15 . 135 . 120 Influence Decreases 9289 | 20 425 7 565 542 406 536 826 642 40 106 1146 745 602 727 545 224 407 130 71 577 Entered New Map 2829 | . . 5 . 232 3 40 208 380 40 . 64 311 432 193 515 144 177 30 41 14 Time Decay 5136 | 20 405 2 515 310 348 466 538 262 . 106 543 374 160 374 30 . 230 60 20 373 Lost Part 735 | . 20 . 50 . 55 30 40 . . . 120 . 10 100 . 80 . 30 10 190 Lost Ally 589 | . . . . . . . 40 . . . 419 60 . 60 . . . 10 . . Squads Dispatched 63 | . 2 . 4 . 2 14 11 . . 1 5 1 . 6 . 3 4 1 . 9 Investigation 9 | . 1 . 3 . 1 2 . . . . . 1 . . . . 1 . . . Extermination 18 | . . . . . . 8 4 . . . . . . 2 . . . . . 4 Reinforcement 28 | . 1 . 1 . 1 4 2 . . 1 3 . . 4 . 3 3 1 . 4 Assault 4 | . . . . . . . 2 . . . 2 . . . . . . . . . Garrison 4 | . . . . . . . 3 . . . . . . . . . . . . 1 Intercept . | . . . . . . . . . . . . . . . . . . . . . Searches Triggered . | . . . . . . . . . . . . . . . . . . . . . Construction Impeded 2 | . . . . . . 1 . . . . . . . 1 . . . . . . Haulers Reinforced 2 | . . . . . . . 1 . . . . . . . . . 1 . . . Active Scanning Responses . | . . . . . . . . . . . . . . . . . . . . . Cargo Convoy Interrupts 1 | . . . . . . 1 . . . . . . . . . . . . . . Stealth | -11 -10 -10 -9 -9 -8 -7 -7 -7 -7 -5 -5 -5 -5 -5 -4 -4 -3 -3 -2 -1 --------- Run | Yrd Mat Min Mat Min Mat Fac Sto Rec Scr Fac Ext Cet Arc Hub Fac DSF Res Tes Res Acc Distress Signals 26 | . 2 . 6 . . 2 . . . . 2 2 . 4 . . 5 1 . 2 Communications Jammed 115 | . . . . . . . . . . 17 15 . . 83 . . . . . . Distress Signals 113 | . . . . . . . . . . 17 15 . . 81 . . . . . . Times Spotted 395 | . 23 2 40 6 19 54 36 3 . 10 51 20 5 41 . 14 17 15 1 38 Peak Tracking Total 11 | . 7 2 5 3 5 5 10 2 . 5 6 5 2 11 . 7 4 9 1 8 Tactical Retreats 21 | . . . 3 . 1 1 3 . . . 2 1 . 1 . 1 . 3 . 5 Traps | -11 -10 -10 -9 -9 -8 -7 -7 -7 -7 -5 -5 -5 -5 -5 -4 -4 -3 -3 -2 -1 ------- Run | Yrd Mat Min Mat Min Mat Fac Sto Rec Scr Fac Ext Cet Arc Hub Fac DSF Res Tes Res Acc Traps Triggered 19 | . . . 2 . . 3 1 . . 1 3 . . 1 1 1 . . 1 5 Indirectly . | . . . . . . . . . . . . . . . . . . . . . Trap Hack Attempts . | . . . . . . . . . . . . . . . . . . . . . Triggered . | . . . . . . . . . . . . . . . . . . . . . Disarmed . | . . . . . . . . . . . . . . . . . . . . . Reprogrammed . | . . . . . . . . . . . . . . . . . . . . . Reused . | . . . . . . . . . . . . . . . . . . . . . Traps Extracted . | . . . . . . . . . . . . . . . . . . . . . Installed . | . . . . . . . . . . . . . . . . . . . . . Triggered . | . . . . . . . . . . . . . . . . . . . . . Machines | -11 -10 -10 -9 -9 -8 -7 -7 -7 -7 -5 -5 -5 -5 -5 -4 -4 -3 -3 -2 -1 ---------- Run | Yrd Mat Min Mat Min Mat Fac Sto Rec Scr Fac Ext Cet Arc Hub Fac DSF Res Tes Res Acc Machines Disabled 36 | . 2 . 6 . 2 1 4 . . . 5 3 1 8 . . 1 . . 3 Max in Single Turn 4 | . 1 . 4 . 1 1 1 . . . 1 1 . 1 . . 1 . . 1 Network Hub 1 | . . . . . . . . . . . . . . 1 . . . . . . Machines Repaired . | . . . . . . . . . . . . . . . . . . . . . Machines Dismantled 5 | . . . . . . . . . . . 3 1 . 1 . . . . . . Machines Sabotaged . | . . . . . . . . . . . . . . . . . . . . . Overloaded Fab Kills . | . . . . . . . . . . . . . . . . . . . . . Hacking | -11 -10 -10 -9 -9 -8 -7 -7 -7 -7 -5 -5 -5 -5 -5 -4 -4 -3 -3 -2 -1 --------- Run | Yrd Mat Min Mat Min Mat Fac Sto Rec Scr Fac Ext Cet Arc Hub Fac DSF Res Tes Res Acc Machines Accessed 63 | . 4 1 10 . 3 14 2 . 4 3 5 2 1 4 1 . 1 4 3 1 Terminals 41 | . 4 . 7 . 2 7 2 . . 3 5 2 . 3 1 . . 4 1 . Fabricators 3 | . . . . . . 3 . . . . . . . . . . . . . . Repair Stations 2 | . . . 1 . . 1 . . . . . . . . . . . . . . Recycling Units 3 | . . . . . 1 1 . . . . . . . . . . 1 . . . Scanalyzers 5 | . . . 2 . . 2 . . . . . . . . . . . . 1 . Garrison Access 3 | . . . . . . . . . . . . . . 1 . . . . 1 1 Total Hacks 170 | . 7 1 26 . 11 39 2 . 32 7 8 7 4 10 2 . 3 5 5 1 Successful 98 | . 5 1 16 . 4 23 1 . 32 1 1 3 4 1 1 . . 4 1 . Failed 70 | . 2 . 9 . 7 15 1 . . 6 7 4 . 9 1 . 3 1 4 1 Catastrophic 16 | . . . . . 2 2 . . . 1 3 2 . 3 . . . 1 2 . Database Lockouts 2 | . . . 1 . . 1 . . . . . . . . . . . . . . Manual 63 | . 6 . 11 . 5 17 2 . . 7 2 1 . 6 . . 3 2 1 . Terminals 88 | . 7 . 13 . 9 16 2 . . 7 8 7 . 9 2 . . 5 3 . Fabricators 8 | . . . . . . 8 . . . . . . . . . . . . . . Repair Stations 4 | . . . 2 . . 2 . . . . . . . . . . . . . . Recycling Units 10 | . . . . . 2 5 . . . . . . . . . . 3 . . . Scanalyzers 20 | . . . 11 . . 8 . . . . . . . . . . . . 1 . Garrison Access 3 | . . . . . . . . . . . . . . 1 . . . . 1 1 Terminal Hacks 53 | . 1 1 3 . 2 3 1 . 32 . . 3 4 . 1 . . 2 . . Record 32 | . . . . . . . . . 25 . . 3 4 . . . . . . . Robot Analysis 9 | . 1 . . . . 1 . . 7 . . . . . . . . . . . Prototype ID Bank 1 | . . . 1 . . . . . . . . . . . . . . . . . Open Door 3 | . . 1 . . . . 1 . . . . . . . . . . 1 . . Open DSF 1 | . . . . . . . . . . . . . . . 1 . . . . . Branch Access Points 2 | . . . 1 . . 1 . . . . . . . . . . . . . . Locate Traps 1 | . . . . . . 1 . . . . . . . . . . . . . . Maintenance Status 1 | . . . . . 1 . . . . . . . . . . . . . . . Recall Investigation 1 | . . . . . 1 . . . . . . . . . . . . . . . Registered Components 2 | . . . 1 . . . . . . . . . . . . . . 1 . . Fabricator Hacks 6 | . . . . . . 6 . . . . . . . . . . . . . . Load Schematic 4 | . . . . . . 4 . . . . . . . . . . . . . . Build 2 | . . . . . . 2 . . . . . . . . . . . . . . Repair Station Hacks 3 | . . . 2 . . 1 . . . . . . . . . . . . . . Scan Component 2 | . . . 1 . . 1 . . . . . . . . . . . . . . Repair 1 | . . . 1 . . . . . . . . . . . . . . . . . Recycling Unit Hacks . | . . . . . . . . . . . . . . . . . . . . . Scanalyzer 13 | . . . 5 . . 7 . . . . . . . . . . . . 1 . Insert Component 4 | . . . 2 . . 2 . . . . . . . . . . . . . . Analyze 5 | . . . 2 . . 3 . . . . . . . . . . . . . . Retrieve Study 4 | . . . 1 . . 2 . . . . . . . . . . . . 1 . Garrison Access Hacks . | . . . . . . . . . . . . . . . . . . . . . Unauthorized Hacks 23 | . 4 . 6 . 2 6 . . . 1 1 . . 1 . . . 2 . . Terminals 18 | . 4 . 4 . 2 3 . . . 1 1 . . 1 . . . 2 . . Assimilate 1 | . . . . . . . . . . . . . . . . . . 1 . . Botnet 17 | . 4 . 4 . 2 3 . . . 1 1 . . 1 . . . 1 . . Fabricators 2 | . . . . . . 2 . . . . . . . . . . . . . . Recompile 2 | . . . . . . 2 . . . . . . . . . . . . . . Repair Stations . | . . . . . . . . . . . . . . . . . . . . . Recycling Units 1 | . . . . . . 1 . . . . . . . . . . . . . . Reject 1 | . . . . . . 1 . . . . . . . . . . . . . . Scanalyzers 2 | . . . 2 . . . . . . . . . . . . . . . . . Extract 2 | . . . 2 . . . . . . . . . . . . . . . . . Garrison Access . | . . . . . . . . . . . . . . . . . . . . . Data Cores Recovered 3 | . . . . . . . . . . 1 . . . 1 . . . . . 1 Used 1 | . . . . . . . . . . . . . . 1 . . . . . . Hacking Detections 38 | . 4 . 1 . 3 9 1 . . 3 5 2 . 4 . . 1 1 3 1 Full Trace Events 5 | . . . 1 . 2 . . . . . . 1 . . . . 1 . . . Feedback Events 1 | . . . . . 1 . . . . . . . . . . . . . . . Corruption 1 | . . . . . 1 . . . . . . . . . . . . . . . Feedback Blocked . | . . . . . . . . . . . . . . . . . . . . . Robot Schematics Acquired . | . . . . . . . . . . . . . . . . . . . . . Robots Built . | . . . . . . . . . . . . . . . . . . . . . Authchips . | . . . . . . . . . . . . . . . . . . . . . Time . | . . . . . . . . . . . . . . . . . . . . . Total Robot Build Rating . | . . . . . . . . . . . . . . . . . . . . . Part Schematics Acquired 12 | . . . 10 . . 2 . . . . . . . . . . . . . . Parts Built 4 | . . . . . . 4 . . . . . . . . . . . . . . Authchips 2 | . . . . . . 2 . . . . . . . . . . . . . . Time 78 | . . . . . . 78 . . . . . . . . . . . . . . Total Part Build Rating 14 | . . . . . . 14 . . . . . . . . . . . . . . Part Studies Acquired 4 | . . . 1 . . 2 . . . . . . . . . . . . 1 . Parts Repaired 1 | . . . 1 . . . . . . . . . . . . . . . . . Time 32 | . . . 32 . . . . . . . . . . . . . . . . . Parts Recycled . | . . . . . . . . . . . . . . . . . . . . . Recycled Matter . | . . . . . . . . . . . . . . . . . . . . . Retrieved Matter . | . . . . . . . . . . . . . . . . . . . . . Retrieved Components . | . . . . . . . . . . . . . . . . . . . . . Parts Scanalyzed 4 | . . . 2 . . 2 . . . . . . . . . . . . . . Part Schematics Acquired 4 | . . . 2 . . 2 . . . . . . . . . . . . . . Parts Damaged 1 | . . . . . . 1 . . . . . . . . . . . . . . Bothacking | -11 -10 -10 -9 -9 -8 -7 -7 -7 -7 -5 -5 -5 -5 -5 -4 -4 -3 -3 -2 -1 ------------ Run | Yrd Mat Min Mat Min Mat Fac Sto Rec Scr Fac Ext Cet Arc Hub Fac DSF Res Tes Res Acc Used RIF Installer . | . . . . . . . . . . . . . . . . . . . . . Robots Hacked . | . . . . . . . . . . . . . . . . . . . . . Non-combat . | . . . . . . . . . . . . . . . . . . . . . Combat . | . . . . . . . . . . . . . . . . . . . . . Robot Hacks Applied . | . . . . . . . . . . . . . . . . . . . . . Relay Couplers Released . | . . . . . . . . . . . . . . . . . . . . . Fabnet Peak Effective % . | . . . . . . . . . . . . . . . . . . . . . Robots Rewired 29 | . . . . . . . . 9 . . 20 . . . . . . . . . Allies Hacked . | . . . . . . . . . . . . . . . . . . . . . Hacks Repelled . | . . . . . . . . . . . . . . . . . . . . . Allies | -11 -10 -10 -9 -9 -8 -7 -7 -7 -7 -5 -5 -5 -5 -5 -4 -4 -3 -3 -2 -1 -------- Run | Yrd Mat Min Mat Min Mat Fac Sto Rec Scr Fac Ext Cet Arc Hub Fac DSF Res Tes Res Acc Total Allies 43 | . . . . 1 . . 2 9 . . 25 5 . . . . . 1 . . Largest Group 13 | . . . . 1 . . 2 9 9 9 13 7 5 4 . . . 1 . . Highest-Rated Group 664 | . . . . 31 . . 62 152 152 152 355 664 543 384 . . . 10 . . Highest-Rated Ally 159 | . . . . 31 . . 31 40 40 40 159 159 159 96 . . . 10 . . Initial UFD Resources 52 | . . . . . . . . . . 37 37 37 37 37 41 41 45 45 49 52 Total Orders . | . . . . . . . . . . . . . . . . . . . . . Ally Attacks 497 | . . . . . . . 31 . . 18 242 89 23 94 . . . . . . Total Damage 13286 | . . . . . . . 405 . . 458 5372 2970 918 3163 . . . . . . Kills 82 | . . . . . . . 4 . . 7 33 20 3 15 . . . . . . Allies Corrupted 3 | . . . . . . . . . . . 1 1 . 1 . . . . . . Allies Melted . | . . . . . . . . . . . . . . . . . . . . . Intel | -11 -10 -10 -9 -9 -8 -7 -7 -7 -7 -5 -5 -5 -5 -5 -4 -4 -3 -3 -2 -1 ------- Run | Yrd Mat Min Mat Min Mat Fac Sto Rec Scr Fac Ext Cet Arc Hub Fac DSF Res Tes Res Acc Active Infowar (turns) 6189 | . . . . . . 179 107 . . 440 1941 872 320 862 . . 119 124 45 1180 Optics 1407 | . . . . . . . . . . . . . . . . . 119 124 45 1119 Terrain 1034 | . . . . . . 179 107 . . . 21 . . . . . . . . 727 Seismic 52 | . . . . . . . . . . . 52 . . . . . . . . . Jamming 4435 | . . . . . . . . . . 440 1941 872 320 862 . . . . . . ECM 194 | . . . . . . . . . . . . . . . . . . . . 194 Robot Analysis Total 9 | . 1 . . . . 1 . . 7 . . . . . . . . . . . Derelict Logs Recovered 2 | . . 2 . . . . . . . . . . . . . . . . . . Drone Launches . | . . . . . . . . . . . . . . . . . . . . . Drone Recoveries . | . . . . . . . . . . . . . . . . . . . . . Exploration | -11 -10 -10 -9 -9 -8 -7 -7 -7 -7 -5 -5 -5 -5 -5 -4 -4 -3 -3 -2 -1 ------------- Run | Yrd Mat Min Mat Min Mat Fac Sto Rec Scr Fac Ext Cet Arc Hub Fac DSF Res Tes Res Acc Turns Passed 21221 | 160 1958 867 1934 695 903 3237 1530 579 2719 520 1941 872 320 876 70 210 481 124 45 1180 Spaces Moved 9417 | 83 460 397 706 295 293 1569 510 190 1104 196 626 384 176 431 64 105 332 271 96 1129 Core 703 | 7 . . . . . . . . . . . . . 31 34 35 142 . . 454 Treads 4447 | 76 344 . . . . 42 510 190 1104 196 626 384 176 400 . 27 . . . 372 Legs 40 | . . . . . . . . . . . . . . . . . 40 . . . Wheels 3420 | . 116 397 706 295 293 1527 . . . . . . . . 30 43 13 . . . Hover . | . . . . . . . . . . . . . . . . . . . . . Flight 807 | . . . . . . . . . . . . . . . . . 137 271 96 303 Fastest Speed 42 | 50 160 215 200 215 215 145 240 242 245 243 238 160 160 50 50 50 42 42 42 42 Average Speed 187 | 150 362 215 229 215 224 162 241 244 245 244 240 196 160 152 78 110 59 42 42 80 Slowest Speed 570 | 160 480 215 230 215 230 570 245 245 245 245 245 243 160 240 115 240 225 45 42 225 Overloaded Moves . | . . . . . . . . . . . . . . . . . . . . . Propulsion Burnouts . | . . . . . . . . . . . . . . . . . . . . . Robots Hopped 14 | . . . . . . . . . . . . . . . . . 2 10 2 . Potential Cave-ins . | . . . . . . . . . . . . . . . . . . . . . Cave-ins Triggered 1 | . . . 1 . . . . . . . . . . . . . . . . . Exploration Rate (%) 49 | 5 86 84 62 53 26 38 81 33 85 7 78 86 94 51 2 65 6 53 4 30 Regions Visited 20 Branch Regions 10 Pre-discovered Areas 1 | . . 1 . . . . . . . . . . . . . . . . . . Known Exits Taken 14 | . . . 1 . . 1 1 1 1 1 1 1 1 1 1 . 1 1 1 . Unknown Exits Taken 5 | 1 1 1 . 1 1 . . . . . . . . . . . . . . . Scrap Searched 7 | . . 1 . . . . . . 6 . . . . . . . . . . . Spaces Dug 17 | . . . 2 . . 6 3 . . . . . . . . . . . . 6 Terrain Destroyed 317 | . . . 53 27 29 6 35 . . . 60 1 1 34 . 8 6 . . 57 Melee 11 | . . . 2 . . 6 3 . . . . . . . . . . . . . Projectile 66 | . . . . . . . . . . . 8 1 1 12 . 8 6 . . 30 AOE 240 | . . . 51 27 29 . 32 . . . 52 . . 22 . . . . . 27 Terrain Rammed . | . . . . . . . . . . . . . . . . . . . . . Walls Destroyed . | . . . . . . . . . . . . . . . . . . . . . Machines Disabled . | . . . . . . . . . . . . . . . . . . . . . Actions | -11 -10 -10 -9 -9 -8 -7 -7 -7 -7 -5 -5 -5 -5 -5 -4 -4 -3 -3 -2 -1 --------- Run | Yrd Mat Min Mat Min Mat Fac Sto Rec Scr Fac Ext Cet Arc Hub Fac DSF Res Tes Res Acc Total 11772 | 109 617 408 887 333 401 2096 691 291 1119 216 891 455 202 562 82 149 582 270 96 1315 Wait 990 | 5 58 . 61 24 9 338 75 6 2 5 13 32 11 47 11 . 206 2 . 85 Move 9373 | 82 459 396 705 294 292 1568 509 189 1103 195 625 383 175 431 63 104 327 252 92 1129 Hop 12 | . . . . . . . . . . . . . . . . . 2 8 2 . Pick Up 145 | 11 17 5 20 . 14 28 8 2 4 . 12 1 2 5 1 4 3 . . 8 Fast Attach 88 | . . 1 5 . . 10 10 . 2 6 11 4 1 . 3 1 15 4 1 14 Attach 86 | 6 4 1 7 . 10 11 6 . 4 . 10 . 1 5 4 6 1 1 . 9 Detach 19 | . . . 1 . . 1 . 2 1 . 2 . . 1 . 5 2 . . 4 Swap 104 | . 4 . 10 4 6 26 13 3 1 1 19 3 2 11 . . . . . 1 Drop 147 | . 5 2 15 . 2 39 11 4 2 1 18 9 3 14 . . 12 3 . 7 Fire 516 | 5 68 . 61 9 48 65 53 7 . 8 57 15 6 44 . 12 14 . . 44 Melee 50 | . . . 2 . 19 7 5 . . . . . . . . 17 . . . . Ram 8 | . . 3 . 2 . . . . . . . . . 1 . . . . 1 1 Kick . | . . . . . . . . . . . . . . . . . . . . . Crush 12 | . 2 . . . 1 1 1 2 . . . . 1 . . . . . . 4 Escape Stasis 17 | . . . . . . 2 . . . . 6 . . . . . . . . 9 Rewire 170 | . . . . . . . . 76 . . 94 . . . . . . . . . Trap . | . . . . . . . . . . . . . . . . . . . . . Miscellaneous 35 | . . . . . . . . . . . 24 8 . 3 . . . . . . Route ------- -11/Scrapyard -10/Materials (discovered 6 exits: *Mat x3 / *Min x2 / [*Sub]) -10/Mines (discovered 2 exits: *Mat / [*Sub]) -9/Materials (discovered 2 exits: *Mat / *Min) -9/Mines (discovered 2 exits: *Mat / [*Zio]) -8/Materials -7/Factory (discovered 4 exits: *Fac / *Sto / Low x2) -7/Storage (discovered 2 exits: *Fac / *Rec) -7/Recycling -7/Scraptown (discovered 2 exits: *Fac x2) -5/Factory -5/Extension (discovered 2 exits: *Fac / *Cet) -5/Cetus (discovered 3 exits: *Fac x2 / *Arc) -5/Archives (discovered 3 exits: *Fac / *Hub x2) -5/Hub_04(d) (discovered 3 exits: *Fac x3) -4/Factory -4/DSF -3/Research -3/Testing -2/Research -1/Access History --------- Turn | Location | Event 5 | -11/Scrapyard | Discovered new exit (range 15) 161 | -11/Scrapyard | Entered Materials 304 | -10/Materials | Build established: Mutant 482 | -10/Materials | Discovered new exit (range 8) 1109 | -10/Materials | Discovered new exit (range 9) 1320 | -10/Materials | Discovered new exit (range 9) 1377 | -10/Materials | Discovered new exit (range 9) 1665 | -10/Materials | Discovered new exit (range 15) 2018 | -10/Materials | Discovered new exit (range 13) 2119 | -10/Materials | Entered Mines 2229 | -10/Mines | Joined a pair of Derelicts in attacking an 0b10 outpost 2367 | -10/Mines | Learned location of Zion (-7) 2404 | -10/Mines | Discovered new exit (range 16) 2484 | -10/Mines | Found a hidden stash of uninstalled traps 2531 | -10/Mines | Discovered new exit (range 8) 2829 | -10/Mines | Met a Derelict who couldn't figure out how to use a Trap Extractor 2986 | -10/Mines | Entered Materials 2986 | -9/Materials | Evolved 2 slots: Utility x1, Weapon x1 3056 | -9/Materials | Repaired Hvy. Assault Rifle 3241 | -9/Materials | Central database locked down 3357 | -9/Materials | Build established: Gunner 4094 | -9/Materials | Discovered new exit (range 11) 4450 | -9/Materials | Identified exit to Mines 4910 | -9/Materials | Crushed by falling debris 4910 | -9/Materials | System corruption reached 10% 4920 | -9/Materials | Entered Mines 4941 | -9/Mines | Lost 3 parts (1p1u1w) 4969 | -9/Mines | Assembled infested the area 5219 | -9/Mines | Build established: Tank 5256 | -9/Mines | Received a Mining Laser from a helpful Derelict 5409 | -9/Mines | A Derelict revealed a hidden shortcut to a safe place 5604 | -9/Mines | Discovered new exit (range 5) 5609 | -9/Mines | Received a Rocket Launcher from a helpful Derelict 5615 | -9/Mines | Entered Materials 5615 | -8/Materials | Evolved 2 slots: Propulsion x1, Utility x1 6261 | -8/Materials | Discovered new exit (range 12) 6518 | -8/Materials | Entered Factory 6518 | -7/Factory | Evolved 2 slots: Propulsion x1, Utility x1 6519 | -7/Factory | Identified exit to Storage 6859 | -7/Factory | Build established: Scavenger-Tank 7178 | -7/Factory | Discovered new exit (range 9) 7303 | -7/Factory | Build established: Tank 7702 | -7/Factory | Identified exit to Factory 8135 | -7/Factory | Build established: Gunner 8146 | -7/Factory | Cargo convoy interrupted 8826 | -7/Factory | Fabricated Minigun (x2) 9047 | -7/Factory | Identified exit to Lower Caves 9059 | -7/Factory | Central database locked down 9313 | -7/Factory | Fabricated Gauss Rifle (x2) 9755 | -7/Factory | Entered Storage 9983 | -7/Storage | Garrison activated, responded to threat 10222 | -7/Storage | Core integrity fell below 50% 10486 | -7/Storage | Met a pair of Derelict thieves 10630 | -7/Storage | Destroyed 9 combat bots 10757 | -7/Storage | Discovered exit to Factory (range 16) 11015 | -7/Storage | Build established: Mutant 11053 | -7/Storage | System corruption reached 10% 11275 | -7/Storage | Used back door to open Recycling access 11275 | -7/Storage | Discovered new exit (range 5) 11282 | -7/Storage | Identified exit to Recycling 11285 | -7/Storage | Entered Recycling 11755 | -7/Recycling | Build established: Commander-Gunner 11788 | -7/Recycling | Scanned before Scraplab entrance 11834 | -7/Recycling | Entered Scraplab 11854 | -7/Recycling | Discovered new exit (range 2) 11854 | -7/Recycling | Identified exit to Scraptown 11864 | -7/Recycling | Entered Scraptown 11864 | -7/Scraptown | Accompanied by 9 allies 11869 | -7/Scraptown | System corruption cleaned by C-Scrubber 12108 | -7/Scraptown | Build established: Commander-Mutant 12136 | -7/Scraptown | Visited UFD Registry 12190 | -7/Scraptown | Visited IN-MT5's Study 12210 | -7/Scraptown | Visited Fellowship of the Rings 12239 | -7/Scraptown | Visited Bundlers 12372 | -7/Scraptown | Visited The Evicted 12450 | -7/Scraptown | Visited CPS Storage 12938 | -7/Scraptown | Build established: Commander-Gunner 13003 | -7/Scraptown | Discovered new exit (range 11) 13155 | -7/Scraptown | Visited Comm Corps 13283 | -7/Scraptown | Registered with UFD as "Macemech" 13363 | -7/Scraptown | Visited Science Testing Area 13403 | -7/Scraptown | Visited Derelict Rescue Squad 13417 | -7/Scraptown | Found DRS Beacon 13497 | -7/Scraptown | Visited Research Penetration Think Tank 13578 | -7/Scraptown | Visited Supply Room 13648 | -7/Scraptown | Visited Junk Repository 14037 | -7/Scraptown | Visited A0-MCA Data Center 14052 | -7/Scraptown | Given an A- rating by A0-MCA 14057 | -7/Scraptown | Found A0-MCA's Component Scanner 14242 | -7/Scraptown | Visited Analyses Database 14429 | -7/Scraptown | Met Optimus 14429 | -7/Scraptown | Accepted into 0bPrime 14576 | -7/Scraptown | Discovered new exit (range 3) 14578 | -7/Scraptown | Identified exit to Factory 14583 | -7/Scraptown | Entered Factory 14583 | -5/Factory | Accompanied by 9 allies 14583 | -5/Factory | Evolved 4 slots: Power x1, Utility x3 15073 | -5/Factory | Discovered new exit (range 11) 15095 | -5/Factory | Identified exit to Extension 15103 | -5/Factory | Entered Extension 15103 | -5/Extension | Accompanied by 7 allies 15355 | -5/Extension | Rescued a captive Derelict 15357 | -5/Extension | Rescued a captive Derelict 15565 | -5/Extension | Lost 3 allies 15756 | -5/Extension | Spotted B-75 Beast 15766 | -5/Extension | Spotted B-75 Beast 15776 | -5/Extension | Allies destroyed B-75 Beast 15815 | -5/Extension | Allies destroyed B-75 Beast 15828 | -5/Extension | Lost 7 allies 15844 | -5/Extension | Lost 6 parts (3n3w) 16156 | -5/Extension | Build established: Scavenger-Tank 16277 | -5/Extension | Rescued a captive Derelict 16278 | -5/Extension | Rescued a captive Derelict 16303 | -5/Extension | First assault squad dispatched 16411 | -5/Extension | Lost 5 allies 16500 | -5/Extension | Lost 8 allies 16520 | -5/Extension | Rescued A7 16531 | -5/Extension | Lost 3 parts (1p2u) 16782 | -5/Extension | Build established: Scavenger-Gunner 17024 | -5/Extension | Discovered new exit (range 10) 17026 | -5/Extension | Discovered new exit (range 6) 17038 | -5/Extension | Identified exit to Cetus 17044 | -5/Extension | Entered Cetus 17044 | -5/Cetus | Accompanied by 3 allies (A7) 17049 | -5/Cetus | Acquired a Cetus Manufacturing Module code from A7 17073 | -5/Cetus | Spotted Cetus Guard 17074 | -5/Cetus | Spotted Cetus Guard 17082 | -5/Cetus | Spotted Cetus Guard 17083 | -5/Cetus | Allies destroyed Cetus Guard 17085 | -5/Cetus | Allies destroyed Cetus Guard 17086 | -5/Cetus | Spotted Cetus Guard 17093 | -5/Cetus | Allies destroyed Cetus Guard 17098 | -5/Cetus | Allies destroyed Cetus Guard 17308 | -5/Cetus | Started Cetus Manufacturing Module 17333 | -5/Cetus | Manufactured an Enhanced Grunt 17357 | -5/Cetus | Escorted A7 to Cetus Mainframe 17358 | -5/Cetus | Manufactured an Enhanced Grunt 17383 | -5/Cetus | Manufactured an Enhanced Grunt 17408 | -5/Cetus | Manufactured an Enhanced Grunt 17433 | -5/Cetus | Manufactured an Enhanced Grunt 17447 | -5/Cetus | Build established: Scavenger-Tank 17462 | -5/Cetus | Discovered new exit (range 15) 17506 | -5/Cetus | Spotted Cetus Guard 17506 | -5/Cetus | Spotted Cetus Guard 17509 | -5/Cetus | Spotted Cetus Guard 17509 | -5/Cetus | Spotted Cetus Guard 17516 | -5/Cetus | Allies destroyed Cetus Guard 17521 | -5/Cetus | Allies destroyed Cetus Guard 17522 | -5/Cetus | Allies destroyed Cetus Guard 17525 | -5/Cetus | Allies destroyed Cetus Guard 17540 | -5/Cetus | Discovered new exit (range 15) 17562 | -5/Cetus | Met Revision 17 17725 | -5/Cetus | Discovered new exit (range 15) 17747 | -5/Cetus | Identified exit to Factory 17794 | -5/Cetus | Security sweep announced 17901 | -5/Cetus | Identified exit to Archives 17916 | -5/Cetus | Entered Archives 17916 | -5/Archives | Accompanied by 5 allies (A7) 17921 | -5/Archives | Received a hacking code to weaken MAIN.C 18002 | -5/Archives | Discovered new exit (range 16) 18013 | -5/Archives | Discovered new exit (range 16) 18084 | -5/Archives | Unable to access archive contents 18102 | -5/Archives | Unable to access archive contents 18121 | -5/Archives | Unable to access archive contents 18137 | -5/Archives | Unable to access archive contents 18154 | -5/Archives | Discovered exit to Factory (range 15) 18231 | -5/Archives | Identified exit to Hub_04(d) 18236 | -5/Archives | Entered Hub_04(d) 18236 | -5/Hub_04(d) | Accompanied by 4 allies 18323 | -5/Hub_04(d) | Discovered exit to Factory (range 15) 18607 | -5/Hub_04(d) | Discovered exit to Factory (range 13) 18703 | -5/Hub_04(d) | Discovered exit to Factory (range 8) 19000 | -5/Hub_04(d) | Network Hub disabled 19020 | -5/Hub_04(d) | Spotted Lightning 19022 | -5/Hub_04(d) | Spotted Lightning 19024 | -5/Hub_04(d) | Spotted Lightning 19034 | -5/Hub_04(d) | System corruption reached 10% 19049 | -5/Hub_04(d) | Spotted Lightning 19052 | -5/Hub_04(d) | Spotted Lightning 19055 | -5/Hub_04(d) | Spotted Lightning 19078 | -5/Hub_04(d) | System corruption reached 30% 19106 | -5/Hub_04(d) | Core integrity fell below 50% 19112 | -5/Hub_04(d) | Entered Factory 19112 | -4/Factory | Evolved 2 slots: Utility x1, Weapon x1 19135 | -4/Factory | Lost 10 parts (2p3n2u3w) 19182 | -4/Factory | Identified exit to DSF 19182 | -4/Factory | Entered DSF 19231 | -4/DSF | Additional patrols routed to DSF 19292 | -4/DSF | Lost 3 parts (2n1u) 19385 | -4/DSF | Discovered new exit (range 14) 19391 | -4/DSF | Core integrity fell below 50% 19391 | -4/DSF | Identified exit to Research 19392 | -4/DSF | Entered Research 19392 | -3/Research | Evolved 2 slots: Utility x2 19419 | -3/Research | Lost 4 parts (1n2u1w) 19582 | -3/Research | Build established: Mutant 19592 | -3/Research | Revision forces began assault on 0b10 19603 | -3/Research | Met up with Revision 17++ 19842 | -3/Research | Discovered new exit (range 8) 19866 | -3/Research | Identified exit to Testing 19873 | -3/Research | Entered Testing 19991 | -3/Testing | Discovered new exit (range 15) 19997 | -3/Testing | Identified exit to Research 19997 | -3/Testing | Entered Research 19997 | -2/Research | Evolved 2 slots: Utility x2 20034 | -2/Research | Discovered new exit (range 9) 20038 | -2/Research | Identified exit to Access 20042 | -2/Research | Entered Access 20042 | -1/Access | Evolved 2 slots: Utility x2 20546 | -1/Access | System corruption reached 10% 20585 | -1/Access | Lost 3 parts (1p2n) 20848 | -1/Access | Garrison activated, responded to threat 20899 | -1/Access | Build established: Skirmisher 21016 | -1/Access | Spotted B-99 Colossus 21027 | -1/Access | Lost 6 parts (1p1n1u3w) 21130 | -1/Access | Lost 5 parts (3n1u1w) 21146 | -1/Access | Core integrity fell below 50% 21195 | -1/Access | Core integrity fell below 20% 21212 | -1/Access | Build established: Mutant 21222 | -1/Access | Destroyed by P-80 Master with Gamma Rifle Last Messages --------------- 21190_ Field strength at 88. 21191_ System corrupted: Energy discharge (-20). 21191_ P-80 Master resets P-80 Master, system corruption cleaned. 21191_ Field strength at 69. 21192_ Field strength at 57. 21193_ Field strength at 45. 21194_ Field strength at 13. 21195_ Stasis field depleted. 21199_ K-01 Serf cleans the Longscan Aggregator. 21216_ Triggered Gamma Bomb Trap. 21216_ A bubble of electromagnetic force engulfs the area. 21216_ Anti-Orbital Battery disabled. 21216_ Gamma Bomb Trap short circuited. 21216_ A bubble of electromagnetic force engulfs the area. 21216_ Gamma Bomb Trap short circuited. 21216_ A bubble of electromagnetic force engulfs the area. Map ----- +----------------------------------------------------+ | """" """""" #?????????????????????????? | | "" "" ##############???????????????????? | | "" "" # #???????????????????? | | # #???????????????????? | | + ""#???????????????????? | | # ""#???????????????????? | | ^ "" # S"#???????????????????? | | "" # " """#???????????????????? | | """""" # """ """#???????????????????? | | """""" # """ """#???????????????????? | | "" # " #???????????????????? | | "" # ! #???????????????????? | | """ # #???????????????????? | | F""" # #???????????????????? | | """" ppp##############???????????????????? | | #####+### = #?????????????????????????? | | ??? # ^ #?????????????????????????? | | ? # #?????????????????????????? | | # #?????????????????????????? | | " # #?????????????????????????? | | """ # #?????????????????????????? | | """ # #?????????????????????????? | | """" ##### #######+###???????????????? | | """ #???# k #???????????????? | | " #???# #???????????????? | | #???# @ #???????????????? | | #???# #???????????????? | | #???# #???????????????? | | #########???# ###########???????????????? | | ????????????#######+####?????????????????????????? | | ????????????????? ???????????????????????????? | | ??????????????? ?????????????????????????? | | ????????????? ???????????????????????? | | ??????????? ?????????????????????? | | ??????????# #????????????????????? | | ??????????# ! #????????????????????? | | ??????????# ! #????????????????????? | | ??????????###################????????????????????? | | ?????????????????????????????????????????????????? | | ?????????????????????????????????????????????????? | | ?????????????????????????????????????????????????? | | ?????????????????????????????????????????????????? | | ?????????????????????????????????????????????????? | | ?????????????????????????????????????????????????? | | ?????????????????????????????????????????????????? | | ?????????????????????????????????????????????????? | | ?????????????????????????????????????????????????? | | ?????????????????????????????????????????????????? | | ?????????????????????????????????????????????????? | | ?????????????????????????????????????????????????? | +----------------------------------------------------+ Best States ------------- Heat Dissipation 61 Energy Generation 37 Energy Capacity 550 Matter Stores 300 Matter Capacity 300 Sight Range 23 Terrain Scan Range 20 Terrain Scan Density 10 ECM Strength 1 Jamming Range 14 Armor Coverage 900 Resistance: TH 15 Evasion (%) 71 Targeting Accuracy 8 Core Analysis 6 Recoil Reduction 4 Matter Filtering 30 Salvage Targeting 3 Authchip Count 1 Item Schematics ----------------- Huge Storage Unit | -9/Materials | Scanalyzed Lgt. Treads | -9/Materials | Scanalyzed Hover Unit | -9/Materials | Extracted Lgt. Assault Rifle | -9/Materials | Extracted Visual Processing Unit | -9/Materials | Extracted Datajack | -9/Materials | Extracted Lgt. Ion Engine | -9/Materials | Extracted VTOL Module | -9/Materials | Extracted Hvy. Hammer | -9/Materials | Extracted Signal Interpreter | -9/Materials | Extracted Minigun | -7/Factory | Scanalyzed Gauss Rifle | -7/Factory | Scanalyzed Robot Schematics ------------------ None Fabricated ------------ Minigun | x2 | -7/Factory | Authchip Gauss Rifle | x2 | -7/Factory | Authchip Repaired ---------- Hvy. Assault Rifle | 22% | -9/Materials Studied --------- Hvy. Assault Rifle | -9/Materials | Hacked Hpw. Shotgun | -7/Factory | Hacked Gauss Rifle | -7/Factory | Hacked Impulse Thruster Array | -2/Research | Hacked Alien Tech Used ----------------- None Achievements -------------- Better Safe Than Exploded Revolutionary Research Challenges ------------ None Game ------ Seed SalvagingNanofilamentsMallet Manual? 0 Play Time 02:42:43 Cumulative 333.5 hours Start 2026.09.23 @ 21:58:49 End 2026.09.24 @ 01:25:56 Sessions 1 Manual Loads 0 Difficulty Rogue Special Mode None Game No. 373 Rogue 373 Adventurer 0 Explorer 0 Win Type - Total 4 Types 3/0/1/0/0/0/0/0/0/0 Lore% 57 Gallery% 61 Achievement% 49 Wizard Run 0 Options --------- Layout 1 ASCII 0 Keyboard 0 Movement Numpad Keybinds 0 Fullscreen 2 Font 24/Smallcaps Map View 50x35 Zoom Use 0% Tactical HUD 1 Map Filters NONE Filters NONE Steam 1 RUN: 2cc2a4b3-9f33-44ed-bc47-e6fe583c5d27